bitfinex/quotes_BTCUSD_20250813
["timestamp","ask_amount","ask_price","bid_price","bid_amount"]
[1755069550809,2.9714228,119200.0,119190.0,1.05320553]
[1755069551025,2.9714228,119200.0,119190.0,0.85320553]
[1755069551243,2.9714228,119200.0,119190.0,1.05320553]
[1755069552839,2.9714228,119200.0,119190.0,1.05529553]
[1755069553486,1.56936328,119200.0,119190.0,1.05529553]
[1755069553712,1.56415328,119200.0,119190.0,1.05837553]
[1755069553933,2.26518304,119200.0,119190.0,1.05837553]
[1755069555740,2.26518304,119200.0,119190.0,1.36389553]
[1755069556021,1.56415328,119200.0,119190.0,1.36389553]
[1755069556231,2.26518304,119200.0,119190.0,1.36389553]
[1755069559530,2.26518304,119200.0,119190.0,1.25937553]
[1755069562689,2.26724304,119200.0,119190.0,1.25937553]
[1755069562898,2.26518304,119200.0,119190.0,1.25937553]
[1755069564569,2.9682728,119200.0,119190.0,1.25937553]
[1755069565830,2.9682728,119200.0,119190.0,1.36389553]
[1755069566742,2.9682728,119200.0,119190.0,1.36081553]
[1755069566967,2.9712528,119200.0,119190.0,1.36081553]
[1755069567391,2.9682728,119200.0,119190.0,1.36081553]
[1755069570228,2.26724304,119200.0,119190.0,1.36081553]
[1755069571070,2.9682728,119200.0,119190.0,1.36081553]
[1755069571285,2.9714828,119200.0,119190.0,1.35872553]
[1755069571694,2.9714828,119200.0,119190.0,1.25420553]
[1755069571901,2.9714828,119200.0,119190.0,1.05320553]
[1755069572630,2.9714828,119200.0,119190.0,0.92524553]
[1755069573065,2.9714828,119200.0,119190.0,1.05316553]
[1755069573268,2.9714828,119200.0,119190.0,0.92524553]
[1755069573696,2.9714828,119200.0,119190.0,1.05316553]
[1755069574824,2.9714828,119200.0,119190.0,1.05521553]
[1755069575129,2.9682728,119200.0,119190.0,1.05521553]
[1755069575529,2.9682728,119200.0,119190.0,1.15973553]
[1755069575755,2.9682728,119200.0,119190.0,1.36073553]
[1755069576806,2.9714828,119200.0,119190.0,1.36073553]
[1755069579200,2.9682728,119200.0,119190.0,1.36376553]
[1755069579631,2.9682728,119200.0,119190.0,1.05824553]
[1755069579837,2.9682728,119200.0,119190.0,1.05521553]
[1755069582531,2.9714828,119200.0,119190.0,1.05316553]
[1755069585576,2.9714828,119200.0,119190.0,1.35868553]
[1755069588264,2.9714828,119200.0,119190.0,1.36073553]
[1755069588464,2.9682728,119200.0,119190.0,1.36073553]
[1755069589586,2.9682728,119200.0,119190.0,1.25621553]
[1755069591041,2.9433237,119200.0,119190.0,1.25621553]
[1755069592323,1.45648093,119200.0,119190.0,1.05824553]
[1755069592543,2.15751069,119200.0,119190.0,1.05824553]
[1755069593249,2.15751069,119200.0,119190.0,1.25824553]
[1755069593868,1.45648093,119200.0,119190.0,1.25824553]
[1755069594093,2.15751069,119200.0,119190.0,1.25824553]
[1755069594938,2.18259799,119200.0,119190.0,1.25824553]
[1755069595677,2.18259799,119200.0,119190.0,1.56376553]
[1755069597634,2.18462799,119200.0,119190.0,1.56073553]
[1755069598012,2.88565775,119200.0,119190.0,1.56073553]
[1755069598643,2.18462799,119200.0,119190.0,1.56073553]
[1755069598855,2.18462799,119200.0,119190.0,1.45621553]
[1755069599727,2.18462799,119200.0,119190.0,1.45933553]
[1755069600790,2.18462799,119200.0,119190.0,1.25833553]
[1755069600916,2.18259799,119200.0,119190.0,1.40833553]
[1755069602624,1.43133693,119200.0,119190.0,1.40929348]
[1755069602837,1.43133693,119200.0,119190.0,1.49201673]
[1755069604327,1.43133693,119200.0,119190.0,1.21785121]
[1755069604535,1.43133693,119200.0,119190.0,1.29081365]
[1755069604700,1.43133693,119200.0,119190.0,1.31594765]
[1755069605142,1.43033693,119200.0,119190.0,1.59505881]
[1755069605390,1.43033693,119200.0,119190.0,1.60005881]
[1755069605593,1.43133693,119200.0,119190.0,1.99109143]
[1755069605794,1.43133693,119200.0,119190.0,1.99339213]
[1755069606027,1.43133693,119200.0,119190.0,1.99639213]
[1755069606371,1.43133693,119200.0,119190.0,1.99339213]
[1755069606774,1.43133693,119200.0,119190.0,1.93641213]
[1755069607966,1.43133693,119200.0,119190.0,1.94041213]
[1755069608603,1.43133693,119200.0,119190.0,1.83589213]
[1755069610489,1.43133693,119200.0,119190.0,1.53037213]
[1755069615686,1.43133693,119200.0,119190.0,1.94029213]
[1755069615894,1.43133693,119200.0,119190.0,1.83581213]
[1755069619813,1.43133693,119200.0,119190.0,1.54937951]
[1755069620459,1.43125303,119200.0,119190.0,1.54937951]
[1755069621712,1.43125303,119200.0,119190.0,1.57758509]
[1755069622797,1.43125303,119200.0,119190.0,2.88125553]
[1755069624140,1.42120534,119200.0,119190.0,2.87725553]
[1755069624388,1.42020534,119200.0,119190.0,2.89825553]
[1755069624648,1.42120534,119200.0,119190.0,2.90925553]
[1755069625667,1.42120534,119200.0,119190.0,3.31913553]
[1755069627417,1.42120534,119200.0,119190.0,2.78487415]
[1755069627618,1.42120534,119200.0,119190.0,2.38318215]
[1755069627842,1.42120534,119200.0,119190.0,1.78865515]
[1755069628269,1.42120534,119200.0,119190.0,1.75692315]
[1755069629721,1.42120534,119200.0,119190.0,1.45152315]
[1755069633210,1.42120534,119200.0,119190.0,1.35082115]
[1755069633417,1.42638534,119200.0,119190.0,1.34561115]
[1755069635349,1.42638534,119200.0,119190.0,1.52816213]
[1755069635563,1.42638534,119200.0,119190.0,1.73712213]
[1755069635786,1.42638534,119200.0,119190.0,1.93804213]
[1755069636726,1.42638534,119200.0,119190.0,1.38708418]
[1755069637132,1.42638534,119200.0,119190.0,1.73804213]
[1755069637623,1.42638534,119200.0,119190.0,1.52908213]
[1755069638696,1.42638534,119200.0,119190.0,1.40120213]
[1755069638901,1.42638534,119200.0,119190.0,1.52924213]
[1755069639582,1.42638534,119200.0,119190.0,1.32832213]
[1755069641598,1.42638534,119200.0,119190.0,1.20028213]
[1755069641776,1.42638534,119200.0,119190.0,1.32832213]
[1755069642929,1.42638534,119200.0,119190.0,0.97736418]
[1755069643092,1.42638534,119200.0,119190.0,1.32832213]
[1755069644030,1.42638534,119200.0,119190.0,1.32332213]
[1755069644402,1.42538534,119200.0,119190.0,1.32132213]
[1755069644806,1.42538534,119200.0,119190.0,1.32332213]
[1755069645640,1.42538534,119200.0,119190.0,1.73320213]
[1755069647033,1.42538534,119200.0,119190.0,1.62872213]
[1755069650593,1.42538534,119200.0,119190.0,1.32328213]
[1755069654177,1.38538534,119200.0,119190.0,1.29328213]
[1755069655653,1.38538534,119200.0,119190.0,1.70316213]
[1755069656596,1.38538534,119200.0,119190.0,1.23942348]
[1755069656799,2.16337245,119200.0,119190.0,1.33276743]
[1755069657036,2.16337245,119200.0,119190.0,1.46064743]
[1755069657239,1.38538534,119200.0,119190.0,1.46064743]
[1755069658860,1.38538534,119200.0,119190.0,1.25972743]
[1755069660309,1.38538534,119200.0,119190.0,0.90876948]
[1755069660448,1.38538534,119200.0,119190.0,1.25972743]
[1755069660853,2.16337245,119200.0,119190.0,0.90876948]
[1755069661063,2.16337245,119200.0,119190.0,0.78088948]
[1755069661282,2.16337245,119200.0,119190.0,0.90880948]
[1755069661500,1.38538534,119200.0,119190.0,1.25976743]
[1755069661656,1.38538534,119200.0,119190.0,0.90880948]
[1755069661881,1.38538534,119200.0,119190.0,1.25976743]
[1755069662548,1.38538534,119200.0,119190.0,1.13184743]
[1755069662710,1.38538534,119200.0,119190.0,1.25976743]
[1755069665681,1.38538534,119200.0,119190.0,1.56520743]
[1755069668391,1.38538534,119200.0,119190.0,1.46072743]
[1755069670173,1.38538534,119200.0,119190.0,1.25976743]
[1755069670613,1.38228534,119200.0,119190.0,1.26465743]
[1755069673713,1.38228534,119200.0,119190.0,1.26172743]
[1755069675116,1.38228534,119200.0,119190.0,1.26465743]
[1755069675729,1.38228534,119200.0,119190.0,1.57009743]
[1755069677731,1.38020534,119200.0,119190.0,1.46561743]
[1755069677949,1.38020534,119200.0,119190.0,1.46465743]
[1755069679199,1.38234534,119200.0,119190.0,1.46465743]
[1755069681582,1.38020534,119200.0,119190.0,1.46465743]
[1755069685681,1.38020534,119200.0,119190.0,1.77009743]
[1755069686149,1.38020534,119200.0,119190.0,1.79523143]
[1755069686355,1.38020534,119200.0,119190.0,1.36187143]
[1755069686557,1.38020534,119200.0,119190.0,1.48971143]
[1755069689315,1.38020534,119200.0,119190.0,1.53998937]
[1755069689525,1.37958334,119200.0,119190.0,1.53998937]
[1755069689952,1.37958334,119200.0,119190.0,1.52616783]
[1755069693638,1.37958334,119200.0,119190.0,1.50716045]
[1755069695582,1.37958334,119200.0,119190.0,1.91704045]
[1755069696395,1.37958334,119200.0,119190.0,1.81256045]
[1755069696737,1.37958334,119200.0,119190.0,1.70808045]
[1755069696933,1.37958334,119200.0,119190.0,1.50716045]
[1755069697808,1.37878334,119200.0,119190.0,1.50716045]
[1755069705550,1.37878334,119200.0,119190.0,1.61164045]
[1755069705859,1.37878334,119200.0,119190.0,1.81256045]
[1755069707710,1.37878334,119200.0,119190.0,1.70808045]
[1755069707888,1.37878334,119200.0,119190.0,1.50716045]
[1755069709423,1.38092334,119200.0,119190.0,1.50716045]
[1755069709731,1.38092334,119200.0,119190.0,1.50423045]
[1755069710369,1.38404334,119200.0,119190.0,0.9513125]
[1755069710577,1.38404334,119200.0,119190.0,1.30227045]
[1755069710912,1.38404334,119200.0,119190.0,0.9513125]
[1755069711423,1.38404334,119200.0,119190.0,1.30227045]
[1755069713610,1.37399396,119200.0,119190.0,1.30227045]
[1755069715184,1.34399396,119200.0,119190.0,1.30227045]
[1755069715576,1.34399396,119200.0,119190.0,1.71215045]
[1755069718007,1.34399396,119200.0,119190.0,1.50319045]
[1755069718222,1.33873396,119200.0,119190.0,1.50851045]
[1755069718657,1.33873396,119200.0,119190.0,1.30759045]
[1755069721534,1.34083396,119200.0,119190.0,1.30759045]
[1755069721735,1.34379396,119200.0,119190.0,1.30441045]
[1755069722074,1.34379396,119200.0,119190.0,1.30227045]
[1755069723454,1.34379396,119200.0,119190.0,1.17443045]
[1755069723656,1.34379396,119200.0,119190.0,1.30291045]
[1755069724340,1.34379396,119200.0,119190.0,0.93450348]
[1755069724546,1.34379396,119200.0,119190.0,1.28546143]
[1755069725198,1.33374454,119200.0,119190.0,1.28546143]
[1755069725584,1.33374454,119200.0,119190.0,1.69534143]
[1755069726628,1.33374454,119200.0,119190.0,1.59086143]
[1755069730561,1.33374454,119200.0,119190.0,1.28546143]
[1755069734525,1.33078454,119200.0,119190.0,1.28756143]
[1755069734750,1.33078454,119200.0,119190.0,1.29076143]
[1755069734982,1.32868454,119200.0,119190.0,1.49076143]
[1755069735223,1.31863524,119200.0,119190.0,3.07871767]
[1755069735436,1.31863524,119200.0,119190.0,3.04825945]
[1755069735635,1.31863524,119200.0,119190.0,3.45813945]
[1755069736021,1.31863524,119200.0,119190.0,3.45613945]
[1755069736218,1.31863524,119200.0,119190.0,3.47514683]
[1755069736367,1.31863524,119200.0,119190.0,3.47714683]
[1755069736585,1.31863524,119200.0,119190.0,3.48314683]
[1755069737051,1.31863524,119200.0,119190.0,3.27418683]
[1755069739228,1.31863524,119200.0,119190.0,3.25517945]
[1755069740281,1.31863524,119200.0,119190.0,3.05425945]
[1755069740691,1.31863524,119200.0,119190.0,2.77704745]
[1755069740851,1.31863524,119200.0,119190.0,2.74695245]
[1755069741403,1.31863524,119200.0,119190.0,2.72458345]
[1755069745381,1.30858757,119200.0,119190.0,2.72458345]
[1755069745588,1.30858757,119200.0,119190.0,3.02998345]
[1755069747075,1.30858757,119200.0,119190.0,2.92550345]
[1755069747521,1.30858757,119200.0,119190.0,2.72458345]
[1755069749000,1.30858757,119200.0,119190.0,2.32591645]
[1755069751539,1.30858757,119200.0,119190.0,1.51421045]
[1755069752027,1.31062757,119200.0,119190.0,0.9632525]
[1755069752230,1.31360757,119200.0,119190.0,1.30927045]
[1755069754624,1.31062757,119200.0,119190.0,1.31126045]
[1755069755161,1.30057929,119200.0,119190.0,1.31126045]
[1755069755537,1.30057929,119200.0,119190.0,1.61666045]
[1755069755905,1.30057929,119200.0,119190.0,1.61976045]
[1755069756534,1.30057929,119200.0,119190.0,1.61666045]
[1755069757152,1.30355929,119200.0,119190.0,1.61666045]
[1755069759773,1.30355929,119200.0,119190.0,1.51218045]
[1755069761660,1.30355929,119200.0,119190.0,1.30526045]
[1755069762055,1.30355929,119200.0,119190.0,1.31026045]
[1755069762263,1.30355929,119200.0,119190.0,1.30426045]
[1755069762643,1.30355929,119200.0,119190.0,1.30726045]
[1755069763873,1.29853929,119200.0,119190.0,1.31036045]
[1755069765179,1.29853929,119200.0,119190.0,2.02761445]
[1755069765594,1.29853929,119200.0,119190.0,2.43749445]
[1755069767036,1.29853929,119200.0,119190.0,2.33301445]
[1755069769501,1.2941359,119200.0,119190.0,2.33301445]
[1755069770964,1.2941359,119200.0,119190.0,2.02761445]
[1755069775583,1.2961759,119200.0,119190.0,2.43749445]
[1755069775984,1.2961759,119200.0,119190.0,2.27239045]
[1755069775985,1.2991559,119200.0,119190.0,2.27239045]
[1755069777324,1.2991559,119200.0,119190.0,1.50599045]
[1755069777950,1.2991559,119200.0,119190.0,1.17643045]
[1755069778174,1.2991559,119200.0,119190.0,1.30507045]
[1755069783726,1.2991559,119200.0,119190.0,1.30495045]
[1755069785647,1.2991559,119200.0,119190.0,1.71483045]
[1755069785884,1.2991559,119200.0,119190.0,1.61035045]
[1755069786863,1.2991559,119200.0,119190.0,1.61236045]
[1755069787068,1.2961759,119200.0,119190.0,1.61236045]
[1755069787274,1.2961759,119200.0,119190.0,1.61551045]
[1755069787479,1.2961759,119200.0,119190.0,1.61236045]
[1755069787687,1.2991159,119200.0,119190.0,1.50587045]
[1755069788513,1.2991159,119200.0,119190.0,1.50788045]
[1755069788742,1.2961759,119200.0,119190.0,1.50788045]
[1755069788915,1.2961759,119200.0,119190.0,1.30696045]
[1755069789157,1.2961759,119200.0,119190.0,1.31011045]
[1755069789563,1.2941359,119200.0,119190.0,2.65091045]
[1755069789744,1.2941359,119200.0,119190.0,3.28184445]
[1755069790001,1.2941359,119200.0,119190.0,3.26397745]
[1755069790209,1.28408742,119200.0,119190.0,3.03253145]
[1755069792359,1.28408742,119200.0,119190.0,2.86147445]
[1755069795682,1.28408742,119200.0,119190.0,3.16687445]
[1755069795908,1.28408742,119200.0,119190.0,3.26239445]
[1755069796132,1.28408742,119200.0,119190.0,3.06147445]
[1755069800152,1.27403944,119200.0,119190.0,3.06147445]
[1755069801899,1.27403944,119200.0,119190.0,2.76793245]
[1755069802987,1.27403944,119200.0,119190.0,2.66876345]
[1755069803211,1.27606944,119200.0,119190.0,2.54898045]
[1755069803581,1.27606944,119200.0,119190.0,1.50696045]
[1755069803803,1.27900944,119200.0,119190.0,1.83662645]
[1755069803977,1.27900944,119200.0,119190.0,1.50495045]
[1755069805033,1.27900944,119200.0,119190.0,1.30495045]
[1755069805606,1.27900944,119200.0,119190.0,1.71483045]
[1755069805923,1.27900944,119200.0,119190.0,1.71539045]
[1755069808003,1.27900944,119200.0,119190.0,1.50643045]
[1755069808705,1.27900944,119200.0,119190.0,1.50844045]
[1755069809166,1.27900944,119200.0,119190.0,1.50643045]
[1755069810002,1.27900944,119200.0,119190.0,1.30551045]
[1755069810207,1.26896099,119200.0,119190.0,1.30551045]
[1755069811222,1.26896099,119200.0,119190.0,1.50551045]
[1755069814061,1.26602099,119200.0,119190.0,1.50747045]
[1755069815570,1.26602099,119200.0,119190.0,1.91735045]
[1755069817195,1.26602099,119200.0,119190.0,1.92034045]
[1755069817649,1.26602099,119200.0,119190.0,1.91735045]
[1755069818088,1.26914099,119200.0,119190.0,1.91735045]
[1755069818515,1.26914099,119200.0,119190.0,1.81287045]
[1755069818805,1.26914099,119200.0,119190.0,1.81091045]
[1755069820315,1.25909255,119200.0,119190.0,1.81091045]
[1755069820521,1.25909255,119200.0,119190.0,1.70643045]
[1755069822522,1.25909255,119200.0,119190.0,1.50551045]
[1755069823133,1.25909255,119200.0,119190.0,1.50747045]
[1755069823479,1.25597255,119200.0,119190.0,1.50747045]
[1755069825733,1.25597255,119200.0,119190.0,1.81287045]
[1755069825997,1.25597255,119200.0,119190.0,1.70839045]
[1755069828070,1.25909255,119200.0,119190.0,1.70839045]
[1755069828479,1.25909255,119200.0,119190.0,1.50551045]
[1755069829229,1.25394255,119200.0,119190.0,1.50747045]
[1755069829449,1.25394255,119200.0,119190.0,2.03271345]
[1755069830164,1.24389411,119200.0,119190.0,2.03271345]
[1755069835544,1.24389411,119200.0,119190.0,2.13719345]
[1755069835732,1.24389411,119200.0,119190.0,2.33811345]
[1755069836815,1.24389411,119200.0,119190.0,2.16840845]
[1755069837163,1.24389411,119200.0,119190.0,2.07190845]
[1755069839538,1.24389411,119200.0,119190.0,1.76650845]
[1755069840248,1.23384567,119200.0,119190.0,1.76650845]
[1755069844019,1.23592567,119200.0,119190.0,1.76650845]
[1755069845584,1.23592567,119200.0,119190.0,2.15656345]
[1755069846529,1.23592567,119200.0,119190.0,2.05208345]
[1755069847073,1.23384567,119200.0,119190.0,2.05208345]
[1755069848505,1.23384567,119200.0,119190.0,1.94760345]
[1755069850166,1.22379723,119200.0,119190.0,1.94760345]
[1755069850544,1.22379723,119200.0,119190.0,1.74668345]
[1755069851370,1.22379723,119200.0,119190.0,1.64923045]
[1755069853202,1.20370034,119200.0,119190.0,1.67332673]
[1755069853432,1.20370034,119200.0,119190.0,1.64923045]
[1755069855598,1.20370034,119200.0,119190.0,1.95463045]
[1755069857253,1.20370034,119200.0,119190.0,1.93833045]
[1755069857462,1.20370034,119200.0,119190.0,1.85015045]
[1755069860195,1.19365245,119200.0,119190.0,1.85015045]
[1755069860409,1.19340076,119200.0,119190.0,1.85015045]
[1755069861227,1.19340076,119200.0,119190.0,1.64923045]
[1755069865558,1.19340076,119200.0,119190.0,1.95463045]
[1755069868254,1.19340076,119200.0,119190.0,1.64923045]
[1755069870336,1.16325709,119200.0,119190.0,1.64923045]
[1755069873871,1.16537709,119200.0,119190.0,1.64923045]
[1755069874057,1.16537709,119200.0,119190.0,1.53231359]
[1755069874299,1.16537709,119200.0,119190.0,1.93572859]
[1755069874512,1.16831709,119200.0,119190.0,1.93572859]
[1755069875533,1.16831709,119200.0,119190.0,2.14468859]
[1755069875841,1.16831709,119200.0,119190.0,2.34560859]
[1755069876062,1.16831709,119200.0,119190.0,2.24112859]
[1755069878112,1.16831709,119200.0,119190.0,2.13664859]
[1755069878326,1.16831709,119200.0,119190.0,1.70643045]
[1755069879868,1.16831709,119200.0,119190.0,1.50551045]
[1755069880198,1.15826861,119200.0,119190.0,1.50551045]
[1755069885591,1.15826861,119200.0,119190.0,1.91539045]
[1755069885799,1.15826861,119200.0,119190.0,1.81091045]
[1755069887792,1.15826861,119200.0,119190.0,1.70643045]
[1755069890156,1.14822011,119200.0,119190.0,1.70643045]
[1755069890353,1.14822011,119200.0,119190.0,1.50551045]
[1755069893669,1.14822011,119200.0,119190.0,1.50748045]
[1755069895782,1.14822011,119200.0,119190.0,1.91736045]
[1755069897535,1.14528011,119200.0,119190.0,1.91736045]
[1755069898594,1.14528011,119200.0,119190.0,1.70840045]
[1755069898796,1.14528011,119200.0,119190.0,1.71148045]
[1755069899173,1.14528011,119200.0,119190.0,1.51056045]
[1755069900254,1.13523162,119200.0,119190.0,1.50748045]
[1755069901354,1.13311162,119200.0,119190.0,1.51070045]
[1755069903866,1.13521162,119200.0,119190.0,1.51070045]
[1755069904026,1.13521162,119200.0,119190.0,1.50748045]
[1755069905622,1.13817162,119200.0,119190.0,1.81288045]
[1755069909194,1.13817162,119200.0,119190.0,1.70840045]
[1755069910252,1.12812313,119200.0,119190.0,1.70840045]
[1755069911220,1.12812313,119200.0,119190.0,1.50748045]
[1755069911840,1.12516313,119200.0,119190.0,1.50748045]
[1755069915564,1.12516313,119200.0,119190.0,1.81288045]
[1755069915815,1.12306313,119200.0,119190.0,1.81610045]
[1755069916021,1.12306313,119200.0,119190.0,1.71162045]
[1755069918571,1.12516313,119200.0,119190.0,1.71162045]
[1755069919639,1.12516313,119200.0,119190.0,1.70840045]
[1755069920048,1.12516313,119200.0,119190.0,1.50748045]
[1755069920280,1.11511464,119200.0,119190.0,1.50748045]
[1755069921375,1.11301464,119200.0,119190.0,1.51070045]
[1755069925427,1.11301464,119200.0,119190.0,2.22936445]
[1755069925628,1.11301464,119200.0,119190.0,2.63924445]
[1755069927348,1.11301464,119200.0,119190.0,2.53476445]
[1755069929337,1.11301464,119200.0,119190.0,2.50760045]
[1755069929559,1.11301464,119200.0,119190.0,2.41310145]
[1755069930249,1.10296675,119200.0,119190.0,2.11110945]
[1755069930459,1.10296675,119200.0,119190.0,1.80570945]
[1755069930882,1.10296675,119200.0,119190.0,1.66695945]
[1755069931103,1.10296675,119200.0,119190.0,1.64909545]
[1755069932334,1.10494675,119200.0,119190.0,1.64909545]
[1755069932932,1.10494675,119200.0,119190.0,1.51070045]
[1755069933137,1.10796675,119200.0,119190.0,1.50551045]
[1755069933826,1.10796675,119200.0,119190.0,1.50459045]
[1755069935781,1.10796675,119200.0,119190.0,1.80999045]
[1755069937784,1.10796675,119200.0,119190.0,1.70551045]
[1755069940367,1.09791826,119200.0,119190.0,1.70551045]
[1755069941854,1.09791826,119200.0,119190.0,1.50459045]
[1755069944299,1.09791826,119200.0,119190.0,1.50662045]
[1755069944498,1.09489826,119200.0,119190.0,1.50662045]
[1755069945522,1.09489826,119200.0,119190.0,1.61110045]
[1755069945754,1.09489826,119200.0,119190.0,1.81202045]
[1755069947776,1.09489826,119200.0,119190.0,1.70754045]
[1755069949799,1.09489826,119200.0,119190.0,1.50662045]
[1755069950289,1.08484975,119200.0,119190.0,1.50662045]
[1755069950939,1.08786975,119200.0,119190.0,1.50662045]
[1755069951157,1.08786975,119200.0,119190.0,1.50459045]
[1755069951381,1.08786975,119200.0,119190.0,0.9536325]
[1755069951588,1.08786975,119200.0,119190.0,1.30459045]
[1755069951803,1.08786975,119200.0,119190.0,0.9536325]
[1755069952441,1.08786975,119200.0,119190.0,1.30459045]
[1755069953653,1.7880843,119200.0,119190.0,1.30459045]
[1755069953861,1.08786975,119200.0,119190.0,1.30459045]
[1755069955522,1.08786975,119200.0,119190.0,1.51355045]
[1755069955729,1.08786975,119200.0,119190.0,1.60999045]
[1755069956147,1.7880843,119200.0,119190.0,1.35990143]
[1755069956362,1.8385043,119200.0,119190.0,1.48806143]
[1755069957006,1.8385043,119200.0,119190.0,1.48506143]
[1755069957215,1.8385043,119200.0,119190.0,1.48006143]
[1755069957366,1.8385043,119200.0,119190.0,1.48406143]
[1755069958177,1.8385043,119200.0,119190.0,1.15498143]
[1755069958384,1.8385043,119200.0,119190.0,1.28314143]
[1755069964072,1.13828975,119200.0,119190.0,1.28314143]
[1755069965532,1.13828975,119200.0,119190.0,1.49210143]
[1755069965749,1.13828975,119200.0,119190.0,1.69302143]
[1755069966298,1.08786975,119200.0,119190.0,1.58854143]
[1755069968267,1.08786975,119200.0,119190.0,1.48406143]
[1755069972196,1.08786975,119200.0,119190.0,1.28314143]
[1755069975659,1.08786975,119200.0,119190.0,1.69302143]
[1755069977301,1.08484975,119200.0,119190.0,1.69830143]
[1755069977830,1.08484975,119200.0,119190.0,1.69508143]
[1755069978284,1.08484975,119200.0,119190.0,1.48612143]
[1755069980847,1.08286975,119200.0,119190.0,1.48934143]
[1755069981050,1.08286975,119200.0,119190.0,1.28842143]
[1755069982182,1.0728201,119200.0,119190.0,1.28842143]
[1755069984331,1.0728201,119200.0,119190.0,1.48842143]
[1755069985641,1.0728201,119200.0,119190.0,1.79382143]
[1755069985852,1.0728201,119200.0,119190.0,1.81127045]
[1755069987720,1.0728201,119200.0,119190.0,1.70679045]
[1755069991748,1.0728201,119200.0,119190.0,1.50587045]
[1755069992043,1.0627707,119200.0,119190.0,1.50587045]
[1755069995521,1.0627707,119200.0,119190.0,1.61035045]
[1755069995740,1.0627707,119200.0,119190.0,1.91575045]
[1755069998866,1.0627707,119200.0,119190.0,1.50587045]
[1755070000096,4.0627707,119200.0,119190.0,1.50587045]
[1755070002218,4.0527213,119200.0,119190.0,1.50587045]
[1755070005071,4.0546813,119200.0,119190.0,1.50587045]
[1755070005701,4.0546813,119200.0,119190.0,1.80805045]
[1755070006533,4.0578713,119200.0,119190.0,1.70151045]
[1755070006741,4.75808585,119200.0,119190.0,1.28306143]
[1755070007150,4.80543585,119200.0,119190.0,1.28306143]
[1755070009997,4.1052213,119200.0,119190.0,1.28306143]
[1755070011246,4.0578713,119200.0,119190.0,1.28306143]
[1755070011793,4.0546813,119200.0,119190.0,1.28508143]
[1755070012229,4.0578713,119200.0,119190.0,1.48508143]
[1755070015531,4.0578713,119200.0,119190.0,1.58956143]
[1755070015760,4.0578713,119200.0,119190.0,1.79048143]
[1755070018820,4.0578713,119200.0,119190.0,1.48508143]
[1755070021427,4.0578713,119200.0,119190.0,1.48306143]
[1755070025642,4.0578713,119200.0,119190.0,1.89496143]
[1755070026057,4.0546813,119200.0,119190.0,1.89795143]
[1755070026823,4.0546813,119200.0,119190.0,1.79347143]
[1755070027554,4.0527213,119200.0,119190.0,1.79347143]
[1755070027992,4.0527213,119200.0,119190.0,1.81092045]
[1755070028219,4.04267153,119200.0,119190.0,1.70644045]
[1755070028934,4.04463153,119200.0,119190.0,1.70644045]
[1755070030236,4.03831402,119200.0,119190.0,1.70644045]
[1755070032120,4.03831402,119200.0,119190.0,1.50552045]
[1755070034496,4.03831402,119200.0,119190.0,1.50253045]
[1755070035585,4.03831402,119200.0,119190.0,1.91241045]
[1755070036244,4.03831402,119200.0,119190.0,1.80793045]
[1755070037196,4.03831402,119200.0,119190.0,1.80477952]
[1755070038203,4.02826447,119200.0,119190.0,1.70029952]
[1755070038427,4.02826447,119200.0,119190.0,1.49937952]
[1755070038831,4.02826447,119200.0,119190.0,1.50236952]
[1755070039259,4.02630447,119200.0,119190.0,1.50236952]
[1755070045615,4.02630447,119200.0,119190.0,1.91224952]
[1755070048269,4.01625497,119200.0,119190.0,1.91224952]
[1755070048691,4.01625497,119200.0,119190.0,1.70328952]
[1755070050456,4.01625497,119200.0,119190.0,1.50236952]
[1755070050670,4.01827497,119200.0,119190.0,1.50236952]
[1755070050892,4.01827497,119200.0,119190.0,1.49937952]
[1755070051120,4.02148497,119200.0,119190.0,1.49937952]
[1755070055624,4.02148497,119200.0,119190.0,1.90925952]
[1755070056567,4.02148497,119200.0,119190.0,1.80477952]
[1755070056891,4.01625497,119200.0,119190.0,1.80802952]
[1755070058116,4.00620514,119200.0,119190.0,1.80802952]
[1755070059171,4.00620514,119200.0,119190.0,1.50262952]
[1755070060795,4.00822514,119200.0,119190.0,1.50262952]
[1755070061014,4.00620514,119200.0,119190.0,1.50262952]
[1755070065672,4.00620514,119200.0,119190.0,1.80802952]
[1755070065977,4.00620514,119200.0,119190.0,1.70354952]
[1755070067779,4.00822514,119200.0,119190.0,1.70354952]
[1755070068139,3.99817593,119200.0,119190.0,1.70354952]
[1755070068346,3.99817593,119200.0,119190.0,1.50262952]
[1755070068845,3.99615593,119200.0,119190.0,1.50262952]
[1755070070442,3.99615593,119200.0,119190.0,1.49862952]
[1755070070626,3.99615593,119200.0,119190.0,1.50562952]
[1755070072286,3.99817593,119200.0,119190.0,1.50562952]
[1755070072865,3.99817593,119200.0,119190.0,1.50237952]
[1755070075549,3.99817593,119200.0,119190.0,1.80777952]
[1755070077641,4.00138593,119200.0,119190.0,1.80777952]
[1755070078020,3.99133668,119200.0,119190.0,1.80777952]
[1755070079438,3.99133668,119200.0,119190.0,1.50237952]
[1755070081251,3.99133668,119200.0,119190.0,1.30035952]
[1755070082071,4.69155123,119200.0,119190.0,1.30035952]
[1755070082283,4.69155123,119200.0,119190.0,1.1548305]
[1755070082284,4.03661668,119200.0,119190.0,1.1548305]
[1755070082497,4.73683123,119200.0,119190.0,1.2576965]
[1755070082707,4.03661668,119200.0,119190.0,1.2576965]
[1755070082884,4.73683123,119200.0,119190.0,1.2576965]
[1755070083094,4.73683123,119200.0,119190.0,1.2526965]
[1755070083297,4.73683123,119200.0,119190.0,1.2506965]
[1755070085193,4.73683123,119200.0,119190.0,1.2546965]
[1755070085639,4.73683123,119200.0,119190.0,1.5600965]
[1755070087968,4.73783123,119200.0,119190.0,1.5600965]
[1755070088179,4.73783123,119200.0,119190.0,1.5560965]
[1755070088613,4.73783123,119200.0,119190.0,1.5590965]
[1755070088801,4.73783123,119200.0,119190.0,1.4546165]
[1755070090830,4.73783123,119200.0,119190.0,1.2536965]
[1755070093226,4.03761668,119200.0,119190.0,1.2536965]
[1755070093430,4.73783123,119200.0,119190.0,1.2536965]
[1755070095731,4.73783123,119200.0,119190.0,1.5591365]
[1755070095929,4.03761668,119200.0,119190.0,1.5591365]
[1755070096082,4.73783123,119200.0,119190.0,1.5591365]
[1755070098691,4.73783123,119200.0,119190.0,1.4546565]
[1755070099421,4.03761668,119200.0,119190.0,1.4546565]
[1755070099636,4.73783123,119200.0,119190.0,1.4546565]
[1755070100549,4.73783123,119200.0,119190.0,1.1256965]
[1755070100700,4.73783123,119200.0,119190.0,1.25269855]
[1755070101456,4.73783123,119200.0,119190.0,1.45269855]
[1755070102527,4.73783123,119200.0,119190.0,0.90269855]
[1755070102771,4.73783123,119200.0,119190.0,1.25269855]
[1755070105549,4.73783123,119200.0,119190.0,1.35717855]
[1755070105733,4.73783123,119200.0,119190.0,1.55813855]
[1755070106338,4.73783123,119200.0,119190.0,1.5590965]
[1755070106559,4.73783123,119200.0,119190.0,1.55813855]
[1755070107023,4.73783123,119200.0,119190.0,1.5590965]
[1755070107572,4.03761668,119200.0,119190.0,1.75813855]
[1755070107779,4.73783123,119200.0,119190.0,1.75813855]
[1755070109372,4.03761668,119200.0,119190.0,1.7590965]